fUSD/lending_fUSD_20250716
["ID","MTS","AMOUNT","RATE_DAILY","PERIOD"]
[372465053,1752654647100,-460.0,0.00021917,2]
[372465055,1752654647109,-460.0,0.00021917,2]
[372465057,1752654647118,-1026.83,0.00021917,2]
[372465059,1752654647128,-199.13847524,0.00021917,2]
[372465061,1752654647137,-460.0,0.00021917,2]
[372465063,1752654647146,-640.68,0.00021917,2]
[372465065,1752654647155,-460.76459641,0.00021917,2]
[372465067,1752654647165,-1361.71,0.00021917,2]
[372465069,1752654647175,-460.0,0.00021917,2]
[372465071,1752654647184,-1184.2,0.00021917,2]
[372465073,1752654647194,-460.0,0.00021917,2]
[372465075,1752654647204,-460.0,0.00021917,2]
[372465077,1752654647214,-151.0,0.00021917,2]
[372465079,1752654647223,-402.37133268,0.00021917,2]
[372465080,1752654647233,-460.0,0.00021917,2]
[372465082,1752654647242,-151.0,0.00021917,2]
[372465084,1752654647252,-151.0,0.00021917,2]
[372465086,1752654647261,-151.0,0.00021917,2]
[372465088,1752654647272,-460.0,0.00021917,2]
[372465091,1752654647281,-151.0,0.00021917,2]
[372465093,1752654647290,-460.0,0.00021917,2]
[372465095,1752654647300,-672.64,0.00021917,2]
[372465096,1752654647309,-151.0,0.00021917,2]
[372465098,1752654647318,-151.0,0.00021917,2]
[372465100,1752654647327,-151.0,0.00021917,2]
[372465102,1752654647336,-460.0,0.00021917,2]
[372465104,1752654647345,-293.478659,0.00021917,2]
[372465106,1752654647355,-1789.6,0.00021917,2]
[372465108,1752654647363,-460.0,0.00021917,2]
[372465110,1752654647373,-460.0,0.00021917,2]
[372465112,1752654647382,-460.0,0.00021917,2]
[372465114,1752654647391,-460.0,0.00021917,2]
[372465117,1752654647401,-1534.54,0.00021917,2]
[372465119,1752654647410,-219.440848,0.00021917,2]
[372465121,1752654647419,-825.59,0.00021917,2]
[372465122,1752654647428,-219.440848,0.00021917,2]
[372465124,1752654647438,-219.440848,0.00021917,2]
[372465127,1752654647450,-642.69,0.00021917,2]
[372465128,1752654647460,-219.440848,0.00021917,2]
[372465131,1752654647469,-219.440848,0.00021917,2]
[372465133,1752654647479,-219.440848,0.00021917,2]
[372465134,1752654647489,-219.440848,0.00021917,2]
[372465136,1752654647499,-219.440848,0.00021917,2]
[372465138,1752654647508,-219.440848,0.00021917,2]
[372465141,1752654647518,-219.440848,0.00021917,2]
[372465143,1752654647530,-219.440848,0.00021917,2]
[372465144,1752654647539,-219.440848,0.00021917,2]
[372465147,1752654647549,-219.440848,0.00021917,2]
[372465149,1752654647558,-614.46,0.00021917,2]
[372465150,1752654647567,-219.440848,0.00021917,2]
[372465152,1752654647577,-219.440848,0.00021917,2]
[372465154,1752654647586,-219.440848,0.00021917,2]
[372465156,1752654647596,-219.440848,0.00021917,2]
[372465158,1752654647605,-219.440848,0.00021917,2]
[372465160,1752654647615,-219.440848,0.00021917,2]
[372465162,1752654647624,-219.440853,0.00021917,2]
[372465164,1752654647633,-151.42354,0.00021917,2]
[372465167,1752654647643,-460.0,0.00021917,2]
[372465168,1752654647652,-769.02,0.00021917,2]
[372465171,1752654647662,-866.39,0.00021917,2]
[372465172,1752654647671,-460.0,0.00021917,2]
[372465174,1752654647680,-460.0,0.00021917,2]
[372465177,1752654647690,-460.0,0.00021917,2]
[372465178,1752654647700,-1275.58,0.00021917,2]
[372465181,1752654647709,-496.40444924,0.00021917,2]
[372465182,1752654647718,-460.0,0.00021917,2]
[372465185,1752654647727,-644.84,0.00021917,2]
[372465186,1752654647736,-1320.5,0.00021917,2]
[372465188,1752654647745,-499.88,0.00021917,2]
[372465190,1752654647755,-151.0,0.00021917,2]
[372465192,1752654647764,-460.0,0.00021917,2]
[372465194,1752654647774,-151.0,0.00021917,2]
[372465196,1752654647785,-151.0,0.00021917,2]
[372465198,1752654647795,-460.0,0.00021917,2]
[372465201,1752654647804,-151.0,0.00021917,2]
[372465203,1752654647814,-151.0,0.00021917,2]
[372465205,1752654647824,-151.0,0.00021917,2]
[372465207,1752654647833,-151.0,0.00021917,2]
[372465208,1752654647843,-151.0,0.00021917,2]
[372465210,1752654647852,-151.0,0.00021917,2]
[372465212,1752654647861,-151.0,0.00021917,2]
[372465215,1752654647871,-460.0,0.00021917,2]
[372465217,1752654647883,-151.0,0.00021917,2]
[372465219,1752654647893,-151.0,0.00021917,2]
[372465221,1752654647902,-234.007073,0.00021917,2]
[372465223,1752654647912,-460.0,0.00021917,2]
[372465225,1752654647920,-607.12,0.00021917,2]
[372465227,1752654647929,-352.344355,0.00021917,2]
[372465229,1752654647938,-352.344355,0.00021917,2]
[372465231,1752654647949,-352.344355,0.00021917,2]
[372465233,1752654647959,-1723.81,0.00021917,2]
[372465235,1752654647968,-151.0,0.00021917,2]
[372465237,1752654647977,-352.344355,0.00021917,2]
[372465239,1752654647987,-676.23,0.00021917,2]
[372465241,1752654647996,-352.344355,0.00021917,2]
[372465242,1752654648005,-151.0,0.00021917,2]
[372465244,1752654648014,-352.344355,0.00021917,2]
[372465246,1752654648024,-460.0,0.00021917,2]
[372465249,1752654648034,-352.344355,0.00021917,2]
[372465250,1752654648044,-352.344355,0.00021917,2]
[372465253,1752654648054,-352.344355,0.00021917,2]
[372465255,1752654648064,-352.344356,0.00021917,2]
[372465257,1752654648074,-500.0,0.00021917,2]
[372465259,1752654648083,-500.0,0.00021917,2]
[372465261,1752654648093,-151.0,0.00021917,2]
[372465263,1752654648103,-500.0,0.00021917,2]
[372465265,1752654648112,-500.0,0.00021917,2]
[372465267,1752654648122,-151.0,0.00021917,2]
[372465269,1752654648131,-500.0,0.00021917,2]
[372465270,1752654648140,-500.0,0.00021917,2]
[372465273,1752654648150,-361.84170685,0.00021917,2]
[372465274,1752654648160,-1885.5,0.00021917,2]
[372465277,1752654648170,-460.0,0.00021917,2]
[372465279,1752654648180,-858.96,0.00021917,2]
[372465280,1752654648190,-460.0,0.00021917,2]
[372465282,1752654648200,-465.13955296,0.00021917,2]
[372465284,1752654648211,-460.0,0.00021917,2]
[372465286,1752654648221,-460.0,0.00021917,2]
[372465288,1752654648231,-151.0,0.00021917,2]
[372465290,1752654648240,-151.0,0.00021917,2]
[372465292,1752654648250,-460.0,0.00021917,2]
[372465294,1752654648259,-151.0,0.00021917,2]
[372465296,1752654648270,-151.0,0.00021917,2]
[372465299,1752654648280,-543.61,0.00021917,2]
[372465300,1752654648290,-643.57,0.00021917,2]
[372465303,1752654648300,-151.0,0.00021917,2]
[372465304,1752654648309,-151.0,0.00021917,2]
[372465306,1752654648319,-226.819734,0.00021917,2]
[372465308,1752654648328,-151.0,0.00021917,2]
[372465310,1752654648337,-923.79,0.00021917,2]
[372465312,1752654648346,-460.0,0.00021917,2]
[372465314,1752654648356,-460.0,0.00021917,2]
[372465316,1752654648365,-460.0,0.00021917,2]
[372465318,1752654648375,-500.0,0.00021917,2]
[372465320,1752654648385,-500.0,0.00021917,2]
[372465322,1752654648395,-872.5,0.00021917,2]
[372465324,1752654648404,-460.0,0.00021917,2]
[372465326,1752654648413,-500.0,0.00021917,2]
[372465328,1752654648423,-500.0,0.00021917,2]
[372465330,1752654648432,-345.70572082,0.00021917,2]
[372465332,1752654648443,-460.0,0.00021917,2]
[372465334,1752654648455,-460.0,0.00021917,2]
[372465336,1752654648464,-460.0,0.00021917,2]
[372465338,1752654648473,-460.0,0.00021917,2]
[372465340,1752654648483,-1203.43,0.00021917,2]
[372465342,1752654648493,-1383.22,0.00021917,2]
[372465344,1752654648503,-488.59,0.00021917,2]
[372465346,1752654648512,-460.0,0.00021917,2]
[372465348,1752654648521,-460.0,0.00021917,2]
[372465350,1752654648533,-460.0,0.00021917,2]
[372465352,1752654648542,-531.37,0.00021917,2]
[372465354,1752654648552,-460.0,0.00021917,2]
[372465356,1752654648561,-460.0,0.00021917,2]
[372465358,1752654648572,-685.5,0.00021917,2]
[372465360,1752654648582,-460.0,0.00021917,2]
[372465362,1752654648592,-460.0,0.00021917,2]
[372465364,1752654648602,-460.0,0.00021917,2]
[372465366,1752654648611,-151.0,0.00021917,2]
[372465368,1752654648621,-460.0,0.00021917,2]
[372465370,1752654648631,-151.0,0.00021917,2]
[372465372,1752654648641,-151.0,0.00021917,2]
[372465374,1752654648650,-151.0,0.00021917,2]
[372465376,1752654648659,-151.0,0.00021917,2]
[372465378,1752654648668,-152.004098,0.00021917,2]
[372465380,1752654648678,-460.0,0.00021917,2]
[372465382,1752654648687,-460.0,0.00021917,2]
[372465384,1752654648699,-500.0,0.00021917,2]
[372465386,1752654648709,-460.0,0.00021917,2]
[372465388,1752654648718,-460.0,0.00021917,2]
[372465389,1752654648728,-151.0,0.00021917,2]
[372465390,1752654648737,-460.0,0.00021917,2]
[372465391,1752654648747,-1000.0,0.00021917,2]
[372465392,1752654648756,-460.0,0.00021917,2]
[372465393,1752654648765,-1304.77,0.00021917,2]
[372465394,1752654648775,-460.0,0.00021917,2]
[372465395,1752654648785,-594.87,0.00021917,2]
[372465396,1752654648795,-500.0,0.00021917,2]
[372465398,1752654648804,-500.0,0.00021917,2]
[372465399,1752654648813,-762.05,0.00021917,2]
[372465402,1752654648824,-460.0,0.00021917,2]
[372465404,1752654648833,-460.0,0.00021917,2]
[372465405,1752654648842,-460.0,0.00021917,2]
[372465406,1752654648852,-460.0,0.00021917,2]
[372465407,1752654648861,-460.0,0.00021917,2]
[372465408,1752654648871,-1245.76,0.00021917,2]
[372465409,1752654648881,-460.0,0.00021917,2]
[372465410,1752654648890,-460.0,0.00021917,2]
[372465411,1752654648900,-739.39,0.00021917,2]
[372465412,1752654648911,-460.0,0.00021917,2]
[372465413,1752654648920,-460.0,0.00021917,2]
[372465414,1752654648930,-656.75,0.00021917,2]
[372465416,1752654648939,-732.88,0.00021917,2]
[372465418,1752654648951,-460.0,0.00021917,2]
[372465419,1752654648961,-460.0,0.00021917,2]
[372465420,1752654648971,-460.0,0.00021917,2]
[372465421,1752654648981,-460.0,0.00021917,2]
[372465422,1752654648990,-462.02335216,0.00021917,2]
[372465423,1752654649000,-460.0,0.00021917,2]
[372465424,1752654649009,-460.0,0.00021917,2]
[372465425,1752654649020,-615.21,0.00021917,2]
[372465427,1752654649030,-179.65838813,0.00021917,2]
[372465429,1752654649040,-269.53353806,0.00021917,2]
[372465431,1752654649050,-1415.78,0.00021917,2]
[372465433,1752654649059,-460.0,0.00021917,2]
[372465435,1752654649069,-500.0,0.00021917,2]
[372465437,1752654649078,-460.0,0.00021917,2]
[372465439,1752654649088,-500.0,0.00021917,2]
[372465441,1752654649098,-3721.71,0.00021917,2]
[372465443,1752654649107,-500.0,0.00021917,2]
[372465445,1752654649117,-513.47930855,0.00021917,2]
[372465447,1752654649127,-460.0,0.00021917,2]
[372465449,1752654649136,-500.0,0.00021917,2]
[372465451,1752654649145,-500.0,0.00021917,2]
[372465453,1752654649154,-460.0,0.00021917,2]
[372465455,1752654649163,-500.0,0.00021917,2]
[372465456,1752654649172,-500.0,0.00021917,2]
[372465458,1752654649182,-500.0,0.00021917,2]
[372465460,1752654649191,-460.0,0.00021917,2]
[372465462,1752654649203,-460.0,0.00021917,2]
[372465463,1752654649212,-4044.73,0.00021917,2]
[372465464,1752654649222,-1378.57,0.00021917,2]
[372465465,1752654649232,-460.0,0.00021917,2]
[372465466,1752654649242,-151.0,0.00021917,2]
[372465467,1752654649251,-151.0,0.00021917,2]
[372465468,1752654649261,-460.0,0.00021917,2]
[372465469,1752654649271,-460.0,0.00021917,2]
[372465470,1752654649280,-151.0,0.00021917,2]
[372465471,1752654649289,-497.58012957,0.00021917,2]
[372465472,1752654649299,-460.0,0.00021917,2]
[372465473,1752654649309,-770.01,0.00021917,2]
[372465474,1752654649318,-151.0,0.00021917,2]
[372465475,1752654649328,-460.0,0.00021917,2]
[372465476,1752654649338,-151.0,0.00021917,2]
[372465477,1752654649347,-151.0,0.00021917,2]
[372465478,1752654649356,-460.0,0.00021917,2]
[372465479,1752654649365,-2719.39,0.00021917,2]
[372465480,1752654649375,-460.0,0.00021917,2]
[372465482,1752654649384,-460.0,0.00021917,2]
[372465484,1752654649394,-460.0,0.00021917,2]
[372465486,1752654649403,-460.0,0.00021917,2]
[372465488,1752654649412,-733.32,0.00021917,2]
[372465490,1752654649421,-460.0,0.00021917,2]
[372465492,1752654649430,-1133.62,0.00021917,2]
[372465494,1752654649439,-966.84,0.00021917,2]
[372465496,1752654649453,-460.0,0.00021917,2]
[372465498,1752654649462,-150.98966253,0.00021917,2]
[372465500,1752654649472,-460.0,0.00021917,2]
[372465502,1752654649482,-859.74,0.00021917,2]
[372465504,1752654649491,-460.0,0.00021917,2]
[372465506,1752654649501,-2036.4,0.00021917,2]
[372465508,1752654649510,-460.0,0.00021917,2]
[372465510,1752654649519,-460.0,0.00021917,2]
[372465512,1752654649530,-1010.74,0.00021917,2]
[372465514,1752654649540,-151.0,0.00021917,2]
[372465516,1752654649550,-154.871895,0.00021917,2]
[372465518,1752654649560,-645.38,0.00021917,2]
[372465520,1752654649569,-460.0,0.00021917,2]
[372465522,1752654649578,-1090.2,0.00021917,2]
[372465524,1752654649587,-1216.71,0.00021917,2]
[372465526,1752654649597,-150.6760615,0.00021917,2]
[372465528,1752654649606,-473.28,0.00021917,2]
[372465530,1752654649616,-1247.86,0.00021917,2]
[372465531,1752654649625,-2653.94,0.00021917,2]
[372465533,1752654649634,-500.0,0.00021917,2]
[372465534,1752654649644,-500.0,0.00021917,2]
[372465535,1752654649654,-528.62,0.00021917,2]
[372465537,1752654649663,-500.0,0.00021917,2]
[372465539,1752654649672,-502.84470366,0.00021917,2]
[372465541,1752654649682,-1919.56,0.00021917,2]
[372465543,1752654649691,-575.98241143,0.00021917,2]
[372465545,1752654649702,-460.0,0.00021917,2]
[372465547,1752654649712,-460.0,0.00021917,2]
[372465549,1752654649721,-536.13,0.00021917,2]
[372465550,1752654649731,-528.54,0.00021917,2]
[372465552,1752654649740,-671.25,0.00021917,2]
[372465554,1752654649750,-1199.76,0.00021917,2]
[372465555,1752654649759,-2627.06,0.00021917,2]
[372465556,1752654649769,-463.1495854,0.00021917,2]
[372465557,1752654649898,-1553.22,0.00021917,2]
[372465558,1752654649924,-521.62,0.00021917,2]
[372465559,1752654649934,-1010.95,0.00021917,2]
[372465560,1752654649946,-460.0,0.00021917,2]
[372465561,1752654649956,-460.0,0.00021917,2]
[372465562,1752654649967,-1372.77,0.00021917,2]
[372465563,1752654649976,-2001.36,0.00021917,2]
[372465564,1752654649986,-2519.51,0.00021917,2]
[372465565,1752654649996,-710.91,0.00021917,2]
[372465566,1752654650006,-2519.51,0.00021917,2]
[372465567,1752654650016,-460.0,0.00021917,2]
[372465568,1752654650026,-2519.51,0.00021917,2]
[372465569,1752654650036,-1784.78,0.00021917,2]
[372465570,1752654650046,-2519.51,0.00021917,2]
[372465571,1752654650055,-2519.51,0.00021917,2]
[372465572,1752654650066,-2519.51,0.00021917,2]
[372465573,1752654650076,-2519.51,0.00021917,2]
[372465574,1752654650086,-2519.51,0.00021917,2]
[372465575,1752654650096,-2519.51,0.00021917,2]
[372465576,1752654650106,-2519.51,0.00021917,2]
[372465577,1752654650116,-2519.51,0.00021917,2]
[372465578,1752654650127,-460.0,0.00021917,2]
[372465579,1752654650136,-2519.51,0.00021917,2]
[372465580,1752654650146,-2064.33,0.00021917,2]
[372465581,1752654650156,-460.0,0.00021917,2]
[372465582,1752654650165,-580.48,0.00021917,2]
[372465583,1752654650175,-460.0,0.00021917,2]
[372465584,1752654650185,-706.5,0.00021917,2]
[372465585,1752654650197,-460.0,0.00021917,2]
[372465586,1752654650207,-804.98,0.00021917,2]
[372465587,1752654650216,-632.0,0.00021917,2]
[372465588,1752654650226,-151.296929,0.00021917,2]
[372465589,1752654650236,-460.0,0.00021917,2]
[372465590,1752654650245,-548.58,0.00021917,2]
[372465591,1752654650257,-530.649402,0.00021917,2]
[372465592,1752654650266,-530.649402,0.00021917,2]
[372465593,1752654650276,-1512.46,0.00021917,2]
[372465594,1752654650285,-460.0,0.00021917,2]
[372465595,1752654650295,-530.649402,0.00021917,2]
[372465596,1752654650305,-530.649402,0.00021917,2]
[372465597,1752654650314,-530.649402,0.00021917,2]
[372465598,1752654650323,-530.649402,0.00021917,2]
[372465599,1752654650333,-530.649402,0.00021917,2]
[372465600,1752654650343,-530.649402,0.00021917,2]
[372465601,1752654650352,-483.33847202,0.00021917,2]
[372465602,1752654650362,-530.649402,0.00021917,2]
[372465603,1752654650372,-530.649402,0.00021917,2]
[372465604,1752654650382,-530.649402,0.00021917,2]
[372465605,1752654650391,-514.97047773,0.00021917,2]
[372465606,1752654650401,-460.0,0.00021917,2]
[372465607,1752654650411,-460.0,0.00021917,2]
[372465608,1752654650420,-530.649402,0.00021917,2]
[372465609,1752654650430,-530.649402,0.00021917,2]
[372465610,1752654650439,-530.649402,0.00021917,2]
[372465611,1752654650452,-788.26,0.00021917,2]
[372465612,1752654650463,-460.0,0.00021917,2]
[372465613,1752654650472,-530.649402,0.00021917,2]
[372465614,1752654650482,-2715.61,0.00021917,2]
[372465615,1752654650493,-166.62493627,0.00021917,2]
[372465616,1752654650503,-3320.91,0.00021917,2]
[372465617,1752654650512,-530.649402,0.00021917,2]
[372465618,1752654650522,-460.0,0.00021917,2]
[372465619,1752654650532,-460.0,0.00021917,2]
[372465620,1752654650542,-530.649402,0.00021917,2]
[372465621,1752654650552,-1059.04,0.00021917,2]
[372465622,1752654650561,-530.649402,0.00021917,2]
[372465623,1752654650571,-530.649402,0.00021917,2]
[372465624,1752654650581,-530.649397,0.00021917,2]
[372465625,1752654650591,-462.64323546,0.00021917,2]
[372465626,1752654650600,-607.87,0.00021917,2]
[372465627,1752654650610,-464.650431,0.00021917,2]
[372465628,1752654650619,-460.0,0.00021917,2]
[372465629,1752654650629,-460.0,0.00021917,2]
[372465630,1752654650639,-1051.19,0.00021917,2]
[372465631,1752654650649,-460.0,0.00021917,2]
[372465632,1752654650658,-533.89,0.00021917,2]
[372465633,1752654650668,-564.48,0.00021917,2]
[372465634,1752654650677,-1095.0,0.00021917,2]
[372465635,1752654650687,-1021.23,0.00021917,2]
[372465636,1752654650699,-460.0,0.00021917,2]
[372465637,1752654650710,-151.0,0.00021917,2]
[372465638,1752654650721,-460.0,0.00021917,2]
[372465639,1752654650733,-801.03,0.00021917,2]
[372465640,1752654650743,-151.0,0.00021917,2]
[372465641,1752654650754,-460.0,0.00021917,2]
[372465642,1752654650764,-460.0,0.00021917,2]
[372465643,1752654650775,-719.96,0.00021917,2]
[372465644,1752654650785,-151.0,0.00021917,2]
[372465645,1752654650795,-151.0,0.00021917,2]
[372465646,1752654650805,-151.0,0.00021917,2]
[372465647,1752654650814,-151.0,0.00021917,2]
[372465648,1752654650824,-151.0,0.00021917,2]
[372465649,1752654650834,-460.0,0.00021917,2]
[372465650,1752654650843,-151.0,0.00021917,2]
[372465651,1752654650853,-740.19,0.00021917,2]
[372465652,1752654650863,-151.0,0.00021917,2]
[372465653,1752654650872,-460.0,0.00021917,2]
[372465654,1752654650882,-460.0,0.00021917,2]
[372465655,1752654650891,-247.777152,0.00021917,2]
[372465656,1752654650901,-460.0,0.00021917,2]
[372465657,1752654650911,-562.23,0.00021917,2]
[372465658,1752654650922,-460.0,0.00021917,2]
[372465659,1752654650932,-648.86,0.00021917,2]
[372465660,1752654650942,-460.0,0.00021917,2]
[372465661,1752654650954,-460.0,0.00021917,2]
[372465662,1752654650965,-460.0,0.00021917,2]
[372465663,1752654650975,-974.4,0.00021917,2]
[372465664,1752654650985,-460.0,0.00021917,2]
[372465665,1752654650996,-2541.03,0.00021917,2]
[372465666,1752654651006,-460.0,0.00021917,2]
[372465667,1752654651016,-460.0,0.00021917,2]
[372465668,1752654651026,-461.37196757,0.00021917,2]
[372465669,1752654651036,-2237.9,0.00021917,2]
[372465670,1752654651046,-1566.89,0.00021917,2]
[372465671,1752654651055,-460.0,0.00021917,2]
[372465672,1752654651065,-460.0,0.00021917,2]
[372465673,1752654651075,-508.09,0.00021917,2]
[372465674,1752654651084,-460.0,0.00021917,2]
[372465675,1752654651094,-460.0,0.00021917,2]
[372465676,1752654651104,-1408.14,0.00021917,2]
[372465677,1752654651113,-460.0,0.00021917,2]
[372465678,1752654651123,-460.0,0.00021917,2]
[372465679,1752654651133,-460.0,0.00021917,2]
[372465680,1752654651142,-460.0,0.00021917,2]
[372465681,1752654651152,-3216.94,0.00021917,2]
[372465682,1752654651162,-464.13342466,0.00021917,2]
[372465683,1752654651172,-346.57521063,0.00021917,2]
[372465684,1752654651181,-666.04,0.00021917,2]
[372465685,1752654651191,-806.18,0.00021917,2]
[372465686,1752654651202,-1278.02,0.00021917,2]
[372465687,1752654651211,-630.81,0.00021917,2]
[372465688,1752654651221,-460.0,0.00021917,2]
[372465689,1752654651230,-460.0,0.00021917,2]
[372465690,1752654651240,-463.10053598,0.00021917,2]
[372465691,1752654651249,-460.0,0.00021917,2]
[372465692,1752654651259,-150.0,0.00021917,2]
[372465693,1752654651268,-500.0,0.00021917,2]
[372465694,1752654651278,-2038.63,0.00021917,2]
[372465695,1752654651288,-2294.92,0.00021917,2]
[372465696,1752654651298,-441.80905337,0.00021917,2]
[372465697,1752654651308,-1447.49,0.00021917,2]
[372465698,1752654651317,-529.11,0.00021917,2]
[372465699,1752654651327,-1918.7,0.00021917,2]
[372465700,1752654651337,-151.0,0.00021917,2]
[372465701,1752654651346,-460.0,0.00021917,2]
[372465702,1752654651356,-1853.62,0.00021917,2]
[372465703,1752654651397,-151.0,0.00021917,2]
[372465704,1752654651406,-933.15,0.00021917,2]
[372465705,1752654651416,-554.07,0.00021917,2]
[372465706,1752654651426,-1067.65,0.00021917,2]
[372465707,1752654651436,-162.76666,0.00021917,2]
[372465708,1752654651447,-460.0,0.00021917,2]
[372465709,1752654651458,-151.0,0.00021917,2]
[372465710,1752654651468,-150.06267487,0.00021917,2]
[372465711,1752654651478,-2695.33,0.00021917,2]
[372465712,1752654651489,-460.0,0.00021917,2]
[372465713,1752654651499,-460.0,0.00021917,2]
[372465714,1752654651508,-1441.77,0.00021917,2]
[372465715,1752654651518,-1619.25,0.00021917,2]
[372465716,1752654651530,-2629.02,0.00021917,2]
[372465717,1752654651540,-460.0,0.00021917,2]
[372465718,1752654651550,-460.0,0.00021917,2]
[372465719,1752654651560,-460.0,0.00021917,2]
[372465720,1752654651570,-460.0,0.00021917,2]
[372465721,1752654651580,-460.0,0.00021917,2]
[372465722,1752654651590,-803.72,0.00021917,2]
[372465723,1752654651600,-460.0,0.00021917,2]
[372465724,1752654651609,-460.0,0.00021917,2]
[372465725,1752654651619,-1524.0,0.00021917,2]
[372465726,1752654651628,-1012.33,0.00021917,2]
[372465727,1752654651638,-1306.3,0.00021917,2]
[372465728,1752654651647,-461.15765315,0.00021917,2]
[372465729,1752654651657,-460.0,0.00021917,2]
[372465730,1752654651666,-150.0,0.00021917,2]
[372465731,1752654651676,-460.0,0.00021917,2]
[372465732,1752654651686,-150.0,0.00021917,2]
[372465733,1752654651696,-460.0,0.00021917,2]
[372465734,1752654651706,-856.32,0.00021917,2]
[372465735,1752654651716,-500.0,0.00021917,2]
[372465736,1752654651726,-500.0,0.00021917,2]
[372465737,1752654651736,-500.0,0.00021917,2]
[372465738,1752654651745,-500.0,0.00021917,2]
[372465739,1752654651755,-500.0,0.00021917,2]
[372465740,1752654651764,-2293.57,0.00021917,2]
[372465741,1752654651774,-721.38,0.00021917,2]
[372465742,1752654651784,-1064.96,0.00021917,2]
[372465743,1752654651793,-1358.11,0.00021917,2]
[372465744,1752654651803,-151.0,0.00021917,2]
[372465745,1752654651812,-460.0,0.00021917,2]
[372465746,1752654651822,-153.176439,0.00021917,2]
[372465747,1752654651831,-460.0,0.00021917,2]
[372465748,1752654651841,-460.0,0.00021917,2]
[372465749,1752654651851,-2326.38,0.00021917,2]
[372465750,1752654651860,-460.0,0.00021917,2]
[372465751,1752654651870,-151.0,0.00021917,2]
[372465752,1752654651880,-273.080682,0.00021917,2]
[372465753,1752654651889,-460.0,0.00021917,2]
[372465754,1752654651899,-956.82,0.00021917,2]
[372465755,1752654651909,-1271.13,0.00021917,2]
[372465756,1752654651919,-979.93402,0.00021917,2]
[372465757,1752654651929,-979.93402,0.00021917,2]
[372465758,1752654651939,-979.93402,0.00021917,2]
[372465759,1752654651950,-460.0,0.00021917,2]
[372465760,1752654651960,-1418.3,0.00021917,2]
[372465761,1752654651971,-2375.93,0.00021917,2]
[372465762,1752654651981,-979.93402,0.00021917,2]
[372465763,1752654651990,-500.0,0.00021917,2]
[372465764,1752654652000,-979.93402,0.00021917,2]
[372465765,1752654652011,-460.0,0.00021917,2]
[372465766,1752654652021,-151.0,0.00021917,2]
[372465767,1752654652030,-979.24,0.00021917,2]
[372465768,1752654652040,-979.93402,0.00021917,2]
[372465769,1752654652050,-460.0,0.00021917,2]
[372465770,1752654652060,-151.0,0.00021917,2]
[372465771,1752654652069,-979.93402,0.00021917,2]
[372465772,1752654652414,-151.0,0.00021917,2]
[372465773,1752654652435,-151.0,0.00021917,2]
[372465774,1752654652445,-979.93402,0.00021917,2]
[372465775,1752654652459,-979.93402,0.00021917,2]
[372465776,1752654652470,-239.679879,0.00021917,2]
[372465777,1752654652480,-979.93402,0.00021917,2]
[372465778,1752654652491,-873.57,0.00021917,2]